fUST/lending_fUST_20251015
["ID","MTS","AMOUNT","RATE_DAILY","PERIOD"]
[391312818,1760508574316,-219.40658461,0.00024459,2]
[391312819,1760508574336,-168.0,0.00024513,2]
[391312820,1760508574356,-168.0,0.00024598,2]
[391312821,1760508625498,235.25,0.00024714,2]
[391312838,1760508632375,-300.0,0.00024769,2]
[391312840,1760508632385,-300.0,0.00024769,2]
[391312842,1760508632395,-158.61,0.0002477,3]
[391312844,1760508632404,-475.85,0.0002477,3]
[391312846,1760508632414,-522.13,0.0002477,10]
[391312848,1760508632423,-321.5102029,0.0002477,10]
[391312850,1760508632435,-674.1597971,0.0002477,10]
[391312853,1760508632446,-829.73,0.0002477,10]
[391312856,1760508632456,-363.65268336,0.00024773,2]
[391312859,1760508632465,-500.0,0.00024773,2]
[391312862,1760508632475,-229.71230408,0.00024773,2]
[391312865,1760508632484,-6548.77757999,0.00024778,2]
[391312867,1760508632493,-151.0,0.00024778,7]
[391312869,1760508632503,-253.473636,0.00024778,7]
[391312871,1760508632512,-151.0,0.00024778,7]
[391312873,1760508632521,-151.0,0.00024779,7]
[391312875,1760508632530,-151.0,0.00024779,7]
[391312877,1760508632540,-266.88186,0.00024779,7]
[391312879,1760508632548,-200.0,0.00024779,2]
[391312880,1760508632557,-168.11587661,0.00024779,2]
[391312881,1760508632566,-181.86564233,0.00024779,2]
[391312882,1760508632576,-500.0,0.00024779,2]
[391312883,1760508632585,-500.0,0.00024779,2]
[391312884,1760508632594,-500.0,0.00024779,2]
[391312885,1760508632602,-500.0,0.00024779,2]
[391312886,1760508632611,-500.0,0.00024779,2]
[391312887,1760508632620,-500.0,0.00024779,2]
[391312888,1760508632630,-500.0,0.00024779,2]
[391312889,1760508632639,-511.3306766,0.00024779,2]
[391312890,1760508632648,-500.0,0.00024779,2]
[391312891,1760508632657,-389.77453931,0.00024779,2]
[391312892,1760508632666,-500.0,0.00024779,2]
[391312893,1760508632676,-500.0,0.00024779,2]
[391312894,1760508632685,-500.0,0.00024779,2]
[391312895,1760508632696,-500.0,0.00024779,2]
[391312896,1760508632705,-500.0,0.00024779,2]
[391312897,1760508632714,-500.0,0.00024779,2]
[391312898,1760508632723,-500.0,0.00024779,2]
[391312899,1760508632732,-500.0,0.00024779,2]
[391312900,1760508632741,-500.0,0.00024779,2]
[391312901,1760508632753,-500.0,0.00024779,2]
[391312902,1760508632763,-500.0,0.00024779,2]
[391312903,1760508632772,-500.0,0.00024779,2]
[391312904,1760508632781,-500.0,0.00024779,2]
[391312905,1760508632790,-500.0,0.00024779,2]
[391312906,1760508632799,-500.0,0.00024779,2]
[391312907,1760508632808,-500.0,0.00024779,2]
[391312908,1760508632817,-500.0,0.00024779,2]
[391312909,1760508632826,-151.0,0.0002478,7]
[391312910,1760508632835,-157545.13495016,0.0002478,2]
[391312913,1760508638235,-1287.13368642,0.00024779,2]
[391312914,1760508638244,-47769.6937404,0.0002478,2]
[391312915,1760508638294,-2765.33170375,0.0002478,2]
[391312916,1760508638305,-1243.61164496,0.0002478,2]
[391312917,1760508638316,-524.87469203,0.0002478,2]
[391312918,1760508638359,-39623.5499765,0.0002478,2]
[391312936,1760508640446,-462.011,0.0002478,2]
[391312937,1760508640458,-419.46999999,0.0002478,2]
[391312961,1760508643398,-801.75247105,0.0002478,2]
[391312962,1760508643410,-17881.84192758,0.0002478,2]
[391312963,1760508643419,-151.0,0.0002479,2]
[391312964,1760508643429,-151.0,0.0002479,2]
[391312965,1760508643438,-151.0,0.0002479,2]
[391312966,1760508643447,-3784.0,0.00024797,2]
[391312967,1760508643457,-3898.0668298,0.000248,2]
[391312968,1760508643487,-196.30000002,0.000248,2]
[391312988,1760508706376,232.26,0.0002471,2]
[391312989,1760508727936,1311.6799253,0.0002468,2]
[391313114,1760509629207,-187.23266888,0.00023461,2]
[391313126,1760509748110,-1628.24499429,0.00021285,2]
[391313127,1760509748131,-8181.15463264,0.000215,2]
[391313128,1760509748214,-223.09645135,0.000215,2]
[391313129,1760509748235,-300.0,0.0002346,2]
[391313130,1760509748256,-150.0,0.00023937,2]
[391313131,1760509748276,-172.5,0.00024537,2]
[391313132,1760509748296,-5239.02206396,0.000246,2]
[391313133,1760509748315,-3669.10357409,0.000246,2]
[391313134,1760509751147,-2012.59526085,0.000246,2]
[391313135,1760509751173,-317.22,0.0002467,3]
[391313136,1760509751192,-691.44,0.0002467,10]
[391313137,1760509751212,-576.2,0.0002467,10]
[391313138,1760509751231,-480.17,0.0002467,10]
[391313139,1760509751250,-400.14,0.0002467,10]
[391313140,1760509751374,-321.074927,0.00024676,2]
[391313141,1760509751397,-167.92563073,0.00024679,2]
[391313142,1760509751417,-500.0,0.00024679,2]
[391313143,1760509751436,-500.0,0.00024679,2]
[391313144,1760509751459,-321.08605992,0.00024679,2]
[391313145,1760509751479,-38281.55222256,0.0002468,2]
[391313192,1760509832526,-160.81,0.0002467,10]
[391313193,1760509832536,-306.65,0.0002467,10]
[391313194,1760509832546,-255.54,0.0002467,10]
[391313195,1760509832558,-212.95,0.0002467,10]
[391313196,1760509832569,-200.0,0.00024679,2]
[391313197,1760509832578,-201.4637601,0.00024679,2]
[391313198,1760509832589,-59.03297588,0.0002468,2]
[391313199,1760509832611,-330347.73487626,0.0002468,2]
[391313200,1760509832622,-392.2568334,0.000247,2]
[391313201,1760509832632,-392.2568334,0.000247,2]
[391313202,1760509832643,-392.2568334,0.000247,2]
[391313203,1760509832653,-392.2568334,0.000247,2]
[391313204,1760509832664,-392.2568334,0.000247,2]
[391313205,1760509832674,-391.5897046,0.000247,2]
[391313206,1760509832684,-160.0,0.00024763,2]
[391313207,1760509832695,-20605.65819559,0.00024765,3]
[391313208,1760509832706,-2281.7344934,0.0002478,2]
[391313209,1760509832719,-392.2568334,0.000248,2]
[391313211,1760509832730,-10393.6956713,0.000248,2]
[391313213,1760509832741,-500.0,0.00024873,2]
[391313216,1760509832752,-524.87285329,0.00024873,2]
[391313217,1760509832763,-500.0,0.00024873,2]
[391313218,1760509832775,-18603.8837,0.00024885,2]
[391313219,1760509832784,-11878.5093386,0.0002489,2]
[391313220,1760509832794,-4034.44494958,0.00024899,2]
[391313221,1760509832803,-218.6594448,0.000249,2]
[391313222,1760509832812,-392.2568334,0.000249,2]
[391313223,1760509832822,-377064.446898,0.000249,2]
[391313224,1760509832832,-168.0,0.00024904,2]
[391313225,1760509832842,-544.83372353,0.00024962,2]
[391313226,1760509832853,-2969.62733466,0.0002499,2]
[391313227,1760509832862,-101000.0,0.00025,15]
[391313228,1760509832874,-5583.0,0.00025,60]
[391313229,1760509832884,-260.649852,0.00025,7]
[391313230,1760509832896,-151.628962,0.00025,7]
[391313231,1760509832907,-151.0,0.00025,7]
[391313232,1760509832917,-151.0,0.00025,7]
[391313233,1760509832928,-229.970827,0.00025,7]
[391313234,1760509832939,-151.0,0.00025,2]
[391313235,1760509832949,-151.0,0.00025,2]
[391313236,1760509832958,-151.0,0.00025,2]
[391313237,1760509832968,-151.0,0.00025,7]
[391313238,1760509832978,-151.0,0.00025,7]
[391313239,1760509832989,-166.910498,0.00025,7]
[391313240,1760509833000,-166.910498,0.00025,7]
[391313241,1760509833010,-166.910498,0.00025,7]
[391313242,1760509833020,-166.910498,0.00025,7]
[391313243,1760509833031,-151.0,0.00025,7]
[391313244,1760509833040,-151.0,0.00025,7]
[391313245,1760509833050,-500.0,0.00025,15]
[391313246,1760509833059,-151.0,0.00025,7]
[391313247,1760509833069,-237.76,0.00025036,2]
[391313248,1760509833079,-500.0,0.00025055,15]
[391313249,1760509833089,-1484.81366733,0.00025055,2]
[391313250,1760509833099,-151.0,0.00025065,7]
[391313251,1760509833109,-151.0,0.00025065,7]
[391313252,1760509833119,-151.0,0.00025065,2]
[391313253,1760509833130,-151.0,0.00025065,2]
[391313254,1760509833141,-254.305809,0.00025065,2]
[391313255,1760509833151,-151.0,0.00025065,7]
[391313256,1760509833162,-151.0,0.00025065,7]
[391313257,1760509833172,-166.910498,0.00025065,7]
[391313258,1760509833182,-166.910498,0.00025065,7]
[391313259,1760509833193,-166.910498,0.00025065,7]
[391313260,1760509833202,-166.910498,0.00025065,7]
[391313261,1760509833212,-151.0,0.00025065,7]
[391313262,1760509833222,-151.0,0.00025065,7]
[391313263,1760509833232,-168.0,0.00025105,2]
[391313264,1760509833242,-500.0,0.0002511,15]
[391313265,1760509833252,-168.0,0.00025126,2]
[391313266,1760509833262,-500.0,0.00025164,15]
[391313268,1760509833272,-500.0,0.00025219,15]
[391313270,1760509833281,-151.0,0.00025221,7]
[391313272,1760509833291,-151.0,0.00025221,7]
[391313273,1760509833302,-151.0,0.00025221,2]
[391313275,1760509833312,-151.0,0.00025221,2]
[391313277,1760509833322,-151.0,0.00025221,7]
[391313279,1760509833332,-151.0,0.00025221,7]
[391313282,1760509833341,-166.910498,0.00025221,7]
[391313284,1760509833351,-166.910498,0.00025221,7]
[391313286,1760509833361,-166.910498,0.00025221,7]
[391313288,1760509833371,-166.910498,0.00025221,7]
[391313290,1760509833381,-151.0,0.00025221,7]
[391313292,1760509833391,-191.49325,0.00025221,7]
[391313294,1760509833400,-355.38959792,0.00025245,2]
[391313311,1760509833554,-168.0,0.00025247,2]
[391313313,1760509833567,-500.0,0.00025274,15]
[391313314,1760509833576,-500.0,0.00025329,15]
[391313316,1760509833586,-485.49472955,0.00025384,15]
[391313317,1760509833596,-1004.74137727,0.00025421,2]
[391313318,1760509833604,-1000.0,0.00025421,2]
[391313319,1760509833613,-18603.8837,0.00025433,2]
[391313320,1760509833622,-417.15472785,0.00025499,2]
[391313321,1760509833632,-290.72860758,0.000255,2]
[391313322,1760509833641,-249.94244633,0.000255,2]
[391313323,1760509833650,-203.70574994,0.000255,2]
[391313324,1760509833660,-160.0,0.00025524,2]
[391313325,1760509833669,-402.51317252,0.00025524,2]
[391313326,1760509833678,-1484.81366733,0.00025603,2]
[391313327,1760509833688,-151.0,0.00025613,7]
[391313328,1760509833697,-151.0,0.00025613,7]
[391313329,1760509833707,-151.0,0.00025613,2]
[391313330,1760509833716,-151.0,0.00025613,2]
[391313331,1760509833726,-151.0,0.00025613,7]
[391313332,1760509833735,-267.989251,0.00025613,7]
[391313333,1760509833744,-166.910498,0.00025613,7]
[391313334,1760509833754,-166.910498,0.00025613,7]
[391313335,1760509833764,-166.910498,0.00025613,7]
[391313336,1760509833773,-166.910498,0.00025613,7]
[391313337,1760509833782,-151.0,0.00025613,7]
[391313338,1760509833792,-168.0,0.00025675,2]
[391313339,1760509833801,-236.0,0.00025769,2]
[391313340,1760509833810,-160.0,0.0002577,2]
[391313341,1760509833819,-249.94244633,0.000258,2]
[391313342,1760509833828,-203.70574994,0.000258,2]
[391313343,1760509833837,-383.8723732,0.00025945,2]
[391313344,1760509833847,-1176.5200948,0.00025945,2]
[391313345,1760509833856,-1500.0,0.00025968,2]
[391313346,1760509833866,-2010.48008348,0.00026,2]
[391313347,1760509833875,-314.0,0.00026,2]
[391313348,1760509833884,-800.0,0.00026025,2]
[391313349,1760509833893,-4999.0,0.00026027,2]
[391313350,1760509833903,-249.94244633,0.000261,2]
[391313351,1760509833912,-203.70574994,0.000261,2]
[391313352,1760509833922,-236.0,0.0002613,2]
[391313353,1760509833931,-236.0,0.0002624,2]
[391313354,1760509833940,-151.0,0.0002629,7]
[391313355,1760509833949,-151.0,0.0002629,7]
[391313356,1760509833958,-151.0,0.0002629,2]
[391313357,1760509833967,-151.0,0.0002629,2]
[391313358,1760509833977,-249.94244633,0.000263,2]
[391313359,1760509833986,-203.70574994,0.000263,2]
[391313360,1760509833995,-151.0,0.000263,7]
[391313361,1760509834005,-5519.0,0.00026306,2]
[391313362,1760509834014,-236.0,0.00026315,7]
[391313363,1760509834023,-260.0,0.00026318,2]
[391313364,1760509834032,-236.0,0.00026413,2]
[391313365,1760509834042,-3000.0,0.000265,2]
[391313366,1760509834051,-2746.94481543,0.000265,2]
[391313367,1760509834060,-150.0,0.000265,10]
[391313368,1760509834069,-166.910498,0.000265,7]
[391313369,1760509834079,-166.910498,0.000265,7]
[391313370,1760509834088,-166.910498,0.000265,7]
[391313371,1760509834097,-166.910489,0.000265,7]
[391313372,1760509834106,-151.0,0.000265,7]
[391313373,1760509834115,-3000.0,0.0002651,2]
[391313374,1760509834124,-500.64477719,0.0002651,10]
[391313375,1760509834133,-500.0,0.0002651,10]
[391313376,1760509834142,-2000.0,0.00026516,2]
[391313377,1760509834151,-3000.0,0.0002652,2]
[391313378,1760509834160,-1484.81366733,0.0002652,2]
[391313379,1760509834169,-3236.271711,0.0002653,2]
[391313380,1760509834178,-981.0,0.00026576,2]
[391313381,1760509834187,-631.0,0.00026576,2]
[391313382,1760509834196,-2161.0,0.00026576,2]
[391313383,1760509834206,-411.0,0.00026576,2]
[391313384,1760509834215,-419.512,0.00026576,2]
[391313385,1760509834224,-236.0,0.00026586,7]
[391313386,1760509834234,-249.94244633,0.000266,2]
[391313387,1760509834244,-203.70574994,0.000266,2]
[391313388,1760509834253,-414.195128,0.00026676,2]
[391313389,1760509834262,-168.0,0.00026775,2]
[391313390,1760509834271,-360.0,0.00026866,2]
[391313391,1760509834280,-2500.0,0.00027064,2]
[391313392,1760509834290,-236.0,0.00027067,2]
[391313393,1760509834299,-250.0,0.00027081,2]
[391313394,1760509834308,-150.373,0.00027081,2]
[391313395,1760509834318,-150.0,0.00027081,2]
[391313396,1760509834327,-229.188,0.00027081,2]
[391313397,1760509834336,-250.0,0.00027081,2]
[391313398,1760509834345,-263.845,0.00027081,2]
[391313399,1760509834354,-294.702,0.00027081,2]
[391313400,1760509834363,-20605.64,0.00027097,3]
[391313401,1760509834372,-177.47262723,0.00027113,2]
[391313402,1760509834381,-5681.69883494,0.00027214,2]
[391313403,1760509834390,-500.0,0.00027262,2]
[391313404,1760509834399,-607.67331548,0.00027262,2]
[391313405,1760509834409,-160.0,0.00027313,3]
[391313406,1760509834417,-475.52,0.00027313,2]
[391313407,1760509834426,-500.0,0.00027373,2]
[391313408,1760509834435,-500.0,0.00027373,2]
[391313409,1760509834445,-500.0,0.00027373,2]
[391313410,1760509834453,-538.99597952,0.00027373,2]
[391313411,1760509834463,-501.57801408,0.00027373,2]
[391313412,1760509834473,-521.46652535,0.00027373,2]
[391313413,1760509834486,-198.4458906,0.0002739,2]
[391313414,1760509834496,-150.0,0.0002739,2]
[391313415,1760509834506,-155.299,0.00027396,2]
[391313416,1760509834515,-500.0,0.00027397,2]
[391313417,1760509834526,-458.46314491,0.00027397,2]
[391313418,1760509834535,-500.0,0.00027397,14]
[391313419,1760509834544,-500.0,0.00027397,14]
[391313420,1760509834554,-500.0,0.00027397,14]
[391313421,1760509834564,-500.0,0.00027397,14]
[391313422,1760509834574,-500.0,0.00027397,14]
[391313423,1760509834583,-160.13837816,0.00027397,14]
[391313424,1760509834592,-322.46432722,0.00027397,14]
[391313425,1760509834602,-153.32722346,0.00027397,2]
[391313426,1760509834612,-500.61500053,0.00027397,2]
[391313427,1760509834621,-500.0,0.00027397,14]
[391313428,1760509834630,-479.79695748,0.00027397,14]
[391313429,1760509834640,-240.2087203,0.00027397,14]
[391313430,1760509834649,-500.0,0.00027397,14]
[391313431,1760509834658,-500.0,0.00027397,14]
[391313432,1760509834667,-500.0,0.00027397,14]
[391313433,1760509834677,-500.0,0.00027397,14]
[391313434,1760509834686,-500.0,0.00027397,14]
[391313435,1760509834695,-500.0,0.00027397,14]
[391313436,1760509834705,-500.0,0.00027397,14]
[391313437,1760509834714,-500.0,0.00027397,14]
[391313438,1760509834723,-500.0,0.00027397,14]
[391313439,1760509834732,-500.0,0.00027397,14]
[391313440,1760509834742,-500.0,0.00027397,14]
[391313441,1760509834751,-500.0,0.00027397,14]
[391313442,1760509834760,-500.0,0.00027397,14]
[391313443,1760509834769,-500.0,0.00027397,14]
[391313444,1760509834779,-500.0,0.00027397,14]
[391313445,1760509834788,-500.0,0.00027397,14]
[391313446,1760509834797,-500.0,0.00027397,14]
[391313447,1760509834807,-500.0,0.00027397,14]
[391313448,1760509834815,-500.0,0.00027397,14]
[391313449,1760509834825,-500.0,0.00027397,14]
[391313450,1760509834834,-500.0,0.00027397,14]
[391313451,1760509834843,-500.0,0.00027397,14]
[391313452,1760509834852,-500.0,0.00027397,14]
[391313453,1760509834861,-171.76548508,0.00027397,14]
[391313454,1760509834870,-515.60411486,0.00027397,2]
[391313455,1760509834880,-500.0,0.00027397,14]
[391313456,1760509834889,-360.74509108,0.00027397,14]
[391313457,1760509834898,-1000.0,0.00027397,2]
[391313458,1760509834907,-1000.0,0.00027397,2]
[391313459,1760509834916,-1000.0,0.00027397,2]
[391313460,1760509834925,-1000.0,0.00027397,2]
[391313461,1760509834935,-1003.77798456,0.00027397,2]
[391313462,1760509834943,-500.0,0.00027397,14]
[391313463,1760509834952,-500.0,0.00027397,14]
[391313464,1760509834961,-500.0,0.00027397,14]
[391313465,1760509834971,-500.0,0.00027397,14]
[391313466,1760509834981,-500.0,0.00027397,14]
[391313467,1760509834992,-500.0,0.00027397,14]
[391313468,1760509835006,-500.0,0.00027397,14]
[391313469,1760509835015,-500.0,0.00027397,14]
[391313470,1760509835024,-500.0,0.00027397,14]
[391313471,1760509835033,-500.0,0.00027397,14]
[391313472,1760509835043,-500.0,0.00027397,14]
[391313473,1760509835052,-500.0,0.00027397,14]
[391313474,1760509835062,-500.0,0.00027397,14]
[391313475,1760509835072,-500.0,0.00027397,14]
[391313476,1760509835081,-500.0,0.00027397,14]
[391313477,1760509835090,-500.0,0.00027397,14]
[391313478,1760509835099,-500.0,0.00027397,14]
[391313479,1760509835108,-500.0,0.00027397,14]
[391313480,1760509835117,-499.99,0.00027397,14]
[391313481,1760509835127,-3566.26,0.00027397,7]
[391313482,1760509835137,-3566.26,0.00027397,7]
[391313483,1760509835145,-3566.26,0.00027397,7]
[391313484,1760509835155,-3566.26,0.00027397,7]
[391313485,1760509835164,-3566.26,0.00027397,7]
[391313486,1760509835173,-3566.26,0.00027397,7]
[391313487,1760509835182,-3566.26,0.00027397,7]
[391313488,1760509835191,-3566.26,0.00027397,7]
[391313489,1760509835200,-3566.26,0.00027397,7]
[391313490,1760509835210,-3566.26,0.00027397,7]
[391313491,1760509835219,-3566.26,0.00027397,7]
[391313492,1760509835228,-3566.26,0.00027397,7]
[391313493,1760509835237,-3566.26,0.00027397,7]
[391313494,1760509835246,-3566.26,0.00027397,7]
[391313495,1760509835255,-3566.26,0.00027397,7]
[391313496,1760509835264,-3566.26,0.00027397,7]
[391313497,1760509835273,-3566.26,0.00027397,7]
[391313498,1760509835282,-500.0,0.00027397,2]
[391313499,1760509835291,-3566.26,0.00027397,7]
[391313500,1760509835300,-500.0,0.00027397,2]
[391313501,1760509835310,-3566.26,0.00027397,7]
[391313502,1760509835319,-500.0,0.00027397,2]
[391313503,1760509835328,-3566.26,0.00027397,7]
[391313504,1760509835337,-183.85090024,0.00027397,2]
[391313505,1760509835346,-3566.26,0.00027397,7]
[391313506,1760509835355,-3566.26,0.00027397,7]
[391313507,1760509835365,-3566.26,0.00027397,7]
[391313508,1760509835374,-3566.36655403,0.00027397,7]
[391313509,1760509835383,-500.0,0.00027397,14]
[391313510,1760509835393,-500.0,0.00027397,14]
[391313511,1760509835402,-500.0,0.00027397,14]
[391313512,1760509835411,-500.0,0.00027397,14]
[391313513,1760509835420,-500.0,0.00027397,14]
[391313514,1760509835430,-500.0,0.00027397,14]
[391313515,1760509835439,-500.0,0.00027397,14]
[391313516,1760509835448,-500.0,0.00027397,14]
[391313517,1760509835457,-500.0,0.00027397,14]
[391313518,1760509835466,-500.0,0.00027397,14]
[391313519,1760509835476,-500.0,0.00027397,14]
[391313520,1760509835487,-327.1822866,0.00027397,14]
[391313521,1760509835496,-2931.55,0.00027397,14]
[391313522,1760509835506,-2931.55,0.00027397,14]
[391313523,1760509835515,-2931.55,0.00027397,14]
[391313524,1760509835524,-2931.55,0.00027397,14]
[391313525,1760509835535,-2931.55,0.00027397,14]
[391313526,1760509835544,-2931.55,0.00027397,14]
[391313527,1760509835553,-2931.55,0.00027397,14]
[391313528,1760509835563,-2931.55,0.00027397,14]
[391313529,1760509835572,-2931.55,0.00027397,14]
[391313530,1760509835581,-2931.55,0.00027397,14]
[391313531,1760509835591,-2931.55,0.00027397,14]
[391313532,1760509835599,-2931.55,0.00027397,14]
[391313533,1760509835608,-2931.55,0.00027397,14]
[391313534,1760509835618,-2931.55,0.00027397,14]
[391313535,1760509835627,-2931.55,0.00027397,14]
[391313536,1760509835635,-2931.55,0.00027397,14]
[391313537,1760509835645,-2931.55,0.00027397,14]
[391313538,1760509835654,-2931.55,0.00027397,14]
[391313539,1760509835663,-2931.55,0.00027397,14]
[391313540,1760509835672,-2931.55,0.00027397,14]
[391313541,1760509835681,-2931.55,0.00027397,14]
[391313542,1760509835691,-2931.55,0.00027397,14]
[391313543,1760509835700,-2931.55,0.00027397,14]
[391313544,1760509835710,-2931.62854134,0.00027397,14]
[391313545,1760509835719,-719.82,0.00027397,14]
[391313546,1760509835728,-719.82,0.00027397,14]
[391313547,1760509835737,-719.82,0.00027397,14]
[391313548,1760509835746,-719.82,0.00027397,14]
[391313549,1760509835755,-719.82,0.00027397,14]
[391313550,1760509835764,-719.82,0.00027397,14]
[391313551,1760509835773,-719.82,0.00027397,14]
[391313552,1760509835782,-719.82,0.00027397,14]
[391313553,1760509835791,-719.82,0.00027397,14]
[391313554,1760509835800,-719.82,0.00027397,14]
[391313555,1760509835809,-719.82,0.00027397,14]
[391313556,1760509835819,-719.82,0.00027397,14]
[391313557,1760509835828,-719.82,0.00027397,14]
[391313558,1760509835837,-719.82,0.00027397,14]
[391313559,1760509835847,-719.82,0.00027397,14]
[391313560,1760509835857,-719.82,0.00027397,14]
[391313561,1760509835866,-719.82,0.00027397,14]
[391313562,1760509835875,-719.82,0.00027397,14]
[391313563,1760509835884,-719.82,0.00027397,14]
[391313564,1760509835893,-719.82,0.00027397,14]
[391313565,1760509835902,-719.82,0.00027397,14]
[391313566,1760509835911,-719.82,0.00027397,14]
[391313567,1760509835920,-719.82,0.00027397,14]
[391313568,1760509835930,-719.97438976,0.00027397,14]
[391313569,1760509835939,-500.0,0.00027397,14]
[391313570,1760509835948,-500.0,0.00027397,14]
[391313571,1760509835958,-500.0,0.00027397,14]
[391313572,1760509835967,-500.0,0.00027397,14]
[391313573,1760509835977,-500.0,0.00027397,14]
[391313574,1760509835987,-500.0,0.00027397,14]
[391313575,1760509835996,-229.23315814,0.00027397,14]
[391313576,1760509836006,-4999.0,0.00027397,4]
[391313577,1760509836015,-446.5568822,0.00027397,14]
[391313578,1760509836023,-500.0,0.00027397,2]
[391313579,1760509836032,-500.0,0.00027397,2]
[391313580,1760509836042,-500.0,0.00027397,2]
[391313581,1760509836051,-498.41371722,0.00027397,2]
[391313582,1760509836060,-151.0,0.00027397,30]
[391313583,1760509836070,-151.0,0.00027397,30]
[391313584,1760509836079,-151.0,0.00027397,30]
[391313585,1760509836088,-151.0,0.00027397,30]
[391313586,1760509836097,-151.0,0.00027397,30]
[391313587,1760509836106,-151.0,0.00027397,30]
[391313588,1760509836115,-180.586893,0.00027397,30]
[391313589,1760509836125,-500.0,0.00027397,5]
[391313590,1760509836134,-14309.87,0.000274,7]
[391313591,1760509836143,-9744.39,0.000274,2]
[391313592,1760509836152,-249.01597424,0.00027414,2]
[391313593,1760509836161,-1000.0,0.00027472,7]
[391313594,1760509836170,-500.0,0.00027493,5]
[391313595,1760509836179,-500.0,0.00027493,5]
[391313596,1760509836188,-3000.0,0.00027612,5]
[391313597,1760509836197,-236.0,0.00027628,2]
[391313598,1760509836207,-237.0,0.00027679,2]
[391313599,1760509836216,-154.132899,0.0002772,60]
[391313600,1760509836226,-158.570374,0.0002772,60]
[391313601,1760509836235,-237.0,0.00027772,2]
[391313602,1760509836244,-501.43411444,0.0002781,5]
[391313603,1760509836253,-237.0,0.00027873,2]
[391313604,1760509836262,-236.0,0.00027889,2]
[391313605,1760509836271,-179.08609194,0.00027921,5]
[391313606,1760509836280,-503.50035093,0.00027921,5]
[391313607,1760509836289,-1000.0,0.00027921,5]
[391313608,1760509836298,-236.0,0.00027947,2]
[391313609,1760509836307,-236.0,0.00027956,2]
[391313610,1760509836316,-14951.0,0.00028,60]
[391313611,1760509836325,-3219.52,0.00028,2]
[391313612,1760509836335,-9000.0,0.00028,2]
[391313613,1760509836344,-2002.27,0.00028,2]
[391313614,1760509836353,-237.0,0.00028003,7]
[391313615,1760509836363,-528.64069725,0.0002816,5]
[391313616,1760509836372,-1000.0,0.00028294,7]
[391313617,1760509836381,-499.6,0.000284,7]
[391313618,1760509836481,-1500.0,0.00028468,5]
[391313619,1760509836496,-500.0,0.0002849,5]
[391313620,1760509836506,-516.36062549,0.0002849,20]
[391313621,1760509836516,-310.0,0.00028493,2]
[391313622,1760509836527,-10000.0,0.00028493,2]
[391313623,1760509836536,-10000.0,0.00028493,2]
[391313624,1760509836546,-10000.0,0.00028493,2]
[391313625,1760509836555,-600.0,0.00028493,2]
[391313626,1760509836567,-214.98964379,0.00028493,2]
[391313627,1760509836577,-20605.64,0.000286,3]
[391313628,1760509836586,-5000.0,0.00028675,18]
[391313629,1760509836595,-5000.0,0.00028675,20]
[391313630,1760509836604,-5000.0,0.00028675,21]
[391313631,1760509836613,-5000.0,0.00028675,22]
[391313632,1760509836622,-5000.0,0.00028675,16]
[391313633,1760509836631,-29104.45755087,0.0002871,4]
[391313634,1760509836641,-4999.0,0.00028767,6]